fUST/lending_fUST_20260128
["ID","MTS","AMOUNT","RATE_DAILY","PERIOD"]
[403777902,1769535040061,-941.13251238,0.00013698,2]
[403777903,1769535040071,-500.0,0.00013698,2]
[403777904,1769535040081,-500.0,0.00013698,2]
[403777905,1769535040090,-500.0,0.00013698,2]
[403777906,1769535040099,-500.0,0.00013698,2]
[403777907,1769535040109,-500.0,0.00013698,2]
[403777908,1769535040118,-1000.0,0.00013698,2]
[403777909,1769535040127,-580.78992406,0.00013698,2]
[403777910,1769535040136,-500.0,0.00013698,2]
[403777911,1769535040146,-500.0,0.00013698,2]
[403777912,1769535040156,-500.0,0.00013698,2]
[403777913,1769535040166,-500.0,0.00013698,2]
[403777914,1769535040176,-500.0,0.00013698,2]
[403777915,1769535040186,-500.0,0.00013698,2]
[403777916,1769535040196,-500.0,0.00013698,2]
[403777917,1769535040206,-515.45788341,0.00013698,2]
[403777918,1769535040216,-26646.7941763,0.00013699,2]
[403777919,1769535040225,-500.81049976,0.00013699,2]
[403777920,1769535040234,-567.35253141,0.00013699,2]
[403777921,1769535040244,-500.0,0.00013699,2]
[403777922,1769535040253,-500.0,0.00013699,2]
[403777923,1769535040263,-500.0,0.00013699,2]
[403777931,1769535040464,-500.0,0.00013699,2]
[403777932,1769535040475,-500.69178235,0.00013699,2]
[403777933,1769535040484,-507.15850376,0.00013699,2]
[403777934,1769535040493,-220.8942339,0.00013699,2]
[403777935,1769535040503,-500.6948387,0.00013699,2]
[403777936,1769535040512,-500.2256561,0.00013699,2]
[403777937,1769535040521,-500.74038109,0.00013699,2]
[403777938,1769535040531,-500.0,0.00013699,2]
[403777940,1769535040540,-500.0,0.00013699,2]
[403777942,1769535040549,-194.72932748,0.00013699,2]
[403777943,1769535040558,-500.0,0.00013699,2]
[403777944,1769535040567,-160.20285304,0.00013699,2]
[403777945,1769535040576,-500.0,0.00013699,2]
[403777946,1769535040586,-165.58700471,0.00013699,2]
[403777947,1769535040595,-500.56709487,0.00013699,2]
[403777948,1769535040604,-500.24926867,0.00013699,2]
[403777949,1769535040613,-299.9295039,0.00013699,2]
[403777950,1769535040626,-500.0,0.00013699,2]
[403777951,1769535040635,-526.45505483,0.00013699,2]
[403777952,1769535040644,-502.14185001,0.00013699,2]
[403777953,1769535040654,-501.93006265,0.00013699,2]
[403777954,1769535040663,-500.0,0.00013699,2]
[403777955,1769535040673,-500.0,0.00013699,2]
[403777956,1769535040684,-500.0,0.00013699,2]
[403777957,1769535040694,-500.0,0.00013699,2]
[403777959,1769535040706,-160.98586548,0.00013699,2]
[403777961,1769535040715,-500.0,0.00013699,2]
[403777962,1769535040725,-507.6640978,0.00013699,2]
[403777963,1769535040735,-160.26500187,0.00013699,2]
[403777964,1769535040743,-500.0,0.00013699,2]
[403777965,1769535040753,-500.0,0.00013699,2]
[403777966,1769535040762,-500.0,0.00013699,2]
[403777967,1769535040771,-500.0,0.00013699,2]
[403777968,1769535040782,-500.0,0.00013699,2]
[403777969,1769535040792,-500.65001385,0.00013699,2]
[403777970,1769535040801,-500.0,0.00013699,2]
[403777971,1769535040811,-302.32459409,0.00013699,2]
[403777972,1769535040819,-612.89276168,0.00013699,2]
[403777973,1769535040829,-462.16420988,0.00013699,2]
[403777974,1769535040841,-500.0,0.00013699,2]
[403777975,1769535040851,-500.0,0.00013699,2]
[403777976,1769535040863,-158.80345848,0.00013699,2]
[403777977,1769535040872,-160.25817065,0.00013699,2]
[403777978,1769535040881,-400.38622524,0.00013699,2]
[403777979,1769535040890,-500.0,0.00013699,2]
[403777980,1769535040899,-500.51551222,0.00013699,2]
[403777981,1769535040909,-500.0,0.00013699,2]
[403777982,1769535040919,-500.0,0.00013699,2]
[403777983,1769535040929,-500.0,0.00013699,2]
[403777984,1769535040938,-158.1763277,0.00013699,2]
[403777985,1769535040947,-500.0,0.00013699,2]
[403777986,1769535040956,-500.0,0.00013699,2]
[403777987,1769535040966,-500.0,0.00013699,2]
[403777988,1769535040975,-500.0,0.00013699,2]
[403777989,1769535040985,-160.67610577,0.00013699,2]
[403777990,1769535040994,-500.0,0.00013699,2]
[403777991,1769535041003,-500.0,0.00013699,2]
[403777992,1769535041013,-500.0,0.00013699,2]
[403777993,1769535041022,-500.2910062,0.00013699,2]
[403777994,1769535041033,-500.0,0.00013699,2]
[403777995,1769535041042,-500.0,0.00013699,2]
[403777996,1769535041051,-158.03248936,0.00013699,2]
[403777997,1769535041061,-500.0,0.00013699,2]
[403777998,1769535041070,-525.37478737,0.00013699,2]
[403777999,1769535041080,-500.74660917,0.00013699,2]
[403778000,1769535041089,-500.0,0.00013699,2]
[403778001,1769535041099,-301.32592677,0.00013699,2]
[403778002,1769535041108,-152.58064698,0.00013699,2]
[403778003,1769535041118,-500.36944659,0.00013699,2]
[403778004,1769535041127,-164.19123008,0.00013699,2]
[403778005,1769535041136,-173.92029318,0.00013699,2]
[403778006,1769535041147,-500.0,0.00013699,2]
[403778007,1769535041155,-526.86363123,0.00013699,2]
[403778008,1769535041165,-536.5376944,0.00013699,2]
[403778009,1769535041174,-500.0,0.00013699,2]
[403778010,1769535041183,-500.0,0.00013699,2]
[403778011,1769535041192,-500.0,0.00013699,2]
[403778012,1769535041202,-500.0,0.00013699,2]
[403778013,1769535041212,-158.38045043,0.00013699,2]
[403778014,1769535041220,-500.0,0.00013699,2]
[403778015,1769535041229,-500.0,0.00013699,2]
[403778016,1769535041239,-500.0,0.00013699,2]
[403778017,1769535041248,-500.0,0.00013699,2]
[403778018,1769535041257,-500.0,0.00013699,2]
[403778019,1769535041267,-158.90561139,0.00013699,2]
[403778020,1769535041276,-308.60459309,0.00013699,2]
[403778021,1769535041285,-638.73037181,0.00013699,2]
[403778022,1769535041295,-500.0,0.00013699,2]
[403778023,1769535041305,-500.0,0.00013699,2]
[403778024,1769535041315,-500.33960277,0.00013699,2]
[403778025,1769535041324,-500.0,0.00013699,2]
[403778026,1769535041333,-500.0,0.00013699,2]
[403778027,1769535041342,-500.71917519,0.00013699,2]
[403778028,1769535041351,-500.0,0.00013699,2]
[403778029,1769535041362,-500.0,0.00013699,2]
[403778030,1769535041374,-500.18246026,0.00013699,2]
[403778031,1769535041383,-500.0,0.00013699,2]
[403778032,1769535041392,-500.0,0.00013699,2]
[403778033,1769535041402,-500.0,0.00013699,2]
[403778034,1769535041411,-500.3335731,0.00013699,2]
[403778035,1769535041420,-500.0,0.00013699,2]
[403778036,1769535041430,-151.0,0.000137,2]
[403778037,1769535041439,-2670.38,0.00013806,2]
[403778038,1769535041448,-500.0,0.0001382,2]
[403778039,1769535041457,-500.0,0.0001382,2]
[403778040,1769535041466,-1000.0,0.00013821,2]
[403778041,1769535041476,-502.68815338,0.00013821,2]
[403778042,1769535041485,-1119.57314068,0.00013821,2]
[403778043,1769535041496,-622.96707627,0.00013821,2]
[403778044,1769535041505,-1000.0,0.00013821,2]
[403778045,1769535041515,-962.44559537,0.00013821,2]
[403778046,1769535041523,-1000.0,0.00013821,2]
[403778047,1769535041533,-1000.0,0.00013821,2]
[403778048,1769535041542,-1000.0,0.00013821,2]
[403778049,1769535041551,-1000.0,0.00013821,2]
[403778050,1769535041560,-1000.0,0.00013821,2]
[403778051,1769535041569,-1000.0,0.00013821,2]
[403778052,1769535041578,-1000.0,0.00013821,2]
[403778053,1769535041587,-1000.0,0.00013821,2]
[403778054,1769535041596,-518.52236368,0.00013821,2]
[403778055,1769535041605,-1000.0,0.00013821,2]
[403778056,1769535041614,-1000.0,0.00013821,2]
[403778057,1769535041624,-1000.0,0.00013821,2]
[403778058,1769535041633,-1000.0,0.00013821,2]
[403778059,1769535041645,-1000.0,0.00013821,2]
[403778060,1769535041657,-1000.0,0.00013821,2]
[403778061,1769535041666,-1000.0,0.00013821,2]
[403778062,1769535041676,-1000.0,0.00013821,2]
[403778063,1769535041685,-1000.0,0.00013821,2]
[403778064,1769535041694,-988.50652582,0.00013821,2]
[403778065,1769535041703,-500.0,0.00013821,2]
[403778066,1769535041715,-500.0,0.00013821,2]
[403778067,1769535041724,-500.0,0.00013821,2]
[403778068,1769535041733,-1000.0,0.00013821,2]
[403778069,1769535041742,-302.08825533,0.00013821,2]
[403778070,1769535041751,-1000.0,0.00013821,2]
[403778071,1769535041760,-1000.0,0.00013821,2]
[403778072,1769535041769,-1000.0,0.00013821,2]
[403778073,1769535041780,-500.0,0.00013821,2]
[403778074,1769535041789,-726.04161405,0.00013821,2]
[403778075,1769535041798,-1000.0,0.00013821,2]
[403778076,1769535041807,-1000.0,0.00013821,2]
[403778077,1769535041816,-1000.0,0.00013821,2]
[403778078,1769535041825,-1000.0,0.00013821,2]
[403778079,1769535041834,-151.0,0.00014,2]
[403778080,1769535041843,-500.0,0.00014005,2]
[403778081,1769535041852,-500.0,0.00014005,2]
[403778082,1769535041862,-500.0,0.00014005,2]
[403778083,1769535041871,-51342.99260131,0.00014006,2]
[403778084,1769535041881,-600.0,0.00014221,2]
[403778085,1769535041890,-500.0,0.00014246,2]
[403778086,1769535041902,-348.473489,0.00014247,2]
[403778087,1769535041913,-1000.0,0.00014247,2]
[403778088,1769535041922,-1000.0,0.00014247,2]
[403778089,1769535041931,-1000.0,0.00014247,2]
[403778090,1769535041940,-1117.40899688,0.00014247,2]
[403778091,1769535041949,-1000.0,0.00014247,2]
[403778092,1769535041960,-1000.0,0.00014247,2]
[403778093,1769535041971,-1000.0,0.00014247,2]
[403778094,1769535041981,-1000.0,0.00014247,2]
[403778095,1769535041991,-844.14797869,0.00014247,2]
[403778096,1769535042000,-501.06198753,0.00014247,2]
[403778097,1769535042010,-610.42597811,0.00014247,2]
[403778098,1769535042019,-1001.21829847,0.00014247,2]
[403778099,1769535042029,-1000.0,0.00014247,2]
[403778100,1769535042038,-1000.0,0.00014247,2]
[403778101,1769535042048,-603.02448987,0.00014247,2]
[403778102,1769535042057,-1000.0,0.00014247,2]
[403778103,1769535042067,-474.23438198,0.00014247,2]
[403778104,1769535042076,-1000.0,0.00014247,2]
[403778105,1769535042086,-1000.0,0.00014247,2]
[403778106,1769535042095,-498.54806363,0.00014247,2]
[403778107,1769535042105,-1000.0,0.00014247,2]
[403778108,1769535042114,-1000.89619199,0.00014247,2]
[403778109,1769535042124,-1000.0,0.00014247,2]
[403778110,1769535042133,-1000.0,0.00014247,2]
[403778111,1769535042142,-1000.0,0.00014247,2]
[403778112,1769535042152,-158.68078088,0.00014247,2]
[403778113,1769535042161,-1000.0,0.00014247,2]
[403778114,1769535042171,-1000.0,0.00014247,2]
[403778115,1769535042182,-500.0,0.00014367,2]
[403778116,1769535042193,-500.0,0.00014368,2]
[403778117,1769535042203,-500.0,0.00014368,2]
[403778118,1769535042211,-618.7672116,0.00014368,2]
[403778119,1769535042221,-1500.0,0.00014368,2]
[403778120,1769535042230,-1476.7197482,0.00014368,2]
[403778121,1769535042238,-1000.0,0.00014368,2]
[403778122,1769535042248,-1500.0,0.00014368,2]
[403778123,1769535042257,-1500.0,0.00014368,2]
[403778124,1769535042266,-1500.0,0.00014368,2]
[403778125,1769535042275,-322.85276011,0.00014368,2]
[403778126,1769535042284,-1000.0,0.00014368,2]
[403778127,1769535042293,-1500.0,0.00014368,2]
[403778128,1769535042302,-1500.0,0.00014368,2]
[403778129,1769535042311,-1645.13012888,0.00014368,2]
[403778130,1769535042319,-1000.0,0.00014368,2]
[403778131,1769535042329,-1500.0,0.00014368,2]
[403778132,1769535042338,-1500.0,0.00014368,2]
[403778133,1769535042347,-1500.0,0.00014368,2]
[403778134,1769535042356,-1500.0,0.00014368,2]
[403778135,1769535042365,-1500.0,0.00014368,2]
[403778136,1769535042374,-1500.0,0.00014368,2]
[403778137,1769535042384,-1500.0,0.00014368,2]
[403778138,1769535042394,-1504.79261489,0.00014368,2]
[403778139,1769535042407,-1500.0,0.00014368,2]
[403778140,1769535042416,-1500.0,0.00014368,2]
[403778141,1769535042425,-151.0,0.000144,2]
[403778142,1769535042434,-864.0,0.00014469,2]
[403778143,1769535042444,-151.0,0.000147,2]
[403778144,1769535042453,-900.0,0.00014768,2]
[403778145,1769535042462,-1500.0,0.00014795,2]
[403778146,1769535042471,-175.70742984,0.00014795,2]
[403778147,1769535042480,-500.0,0.00014795,2]
[403778148,1769535042489,-1000.0,0.00014795,2]
[403778149,1769535042498,-1500.0,0.00014795,2]
[403778150,1769535042507,-1500.0,0.00014795,2]
[403778151,1769535042516,-1500.0,0.00014795,2]
[403778152,1769535042526,-3560.51,0.00014868,2]
[403778153,1769535042536,-464.54701019,0.00014916,2]
[403778154,1769535042544,-1000.0,0.00014916,2]
[403778155,1769535042555,-500.0,0.00014916,2]
[403778156,1769535042564,-1000.0,0.00014916,2]
[403778157,1769535042575,-2000.0,0.00014916,2]
[403778158,1769535042584,-712.6308883,0.00014916,2]
[403778159,1769535042594,-1000.0,0.00014916,2]
[403778160,1769535042603,-2000.0,0.00014916,2]
[403778161,1769535042612,-2000.0,0.00014916,2]
[403778162,1769535042623,-2000.0,0.00014916,2]
[403778163,1769535042636,-500.0,0.00014916,2]
[403778164,1769535042646,-2000.0,0.00014916,2]
[403778165,1769535042656,-2000.0,0.00014916,2]
[403778166,1769535042666,-190.842461,0.00015068,2]
[403778167,1769535042676,-900.0,0.00015316,2]
[403778168,1769535042685,-160.0,0.00015336,2]
[403778169,1769535042695,-10000.0,0.00015342,2]
[403778170,1769535042704,-10000.0,0.00015342,2]
[403778171,1769535042713,-10000.0,0.00015342,2]
[403778172,1769535042722,-1500.0,0.00015342,2]
[403778173,1769535042731,-160.0,0.00015399,2]
[403778174,1769535042741,-704911.79885228,0.000154,2]
[403778175,1769535042750,-10000.02,0.00015442,2]
[403778176,1769535042759,-10000.02,0.00015442,2]
[403778177,1769535042768,-10000.02,0.00015442,2]
[403778178,1769535042779,-1000.0,0.00015464,2]
[403778179,1769535042788,-1000.0,0.00015464,2]
[403778180,1769535042799,-1000.0,0.00015464,2]
[403778181,1769535042811,-500.0,0.00015464,2]
[403778182,1769535042821,-1000.0,0.00015464,2]
[403778183,1769535042830,-1000.0,0.00015464,2]
[403778184,1769535042839,-525.15623223,0.00015657,2]
[403778185,1769535042848,-200.0,0.00015884,2]
[403778186,1769535042857,-165.13470443,0.00015884,2]
[403778187,1769535042867,-1000.0,0.00015916,2]
[403778188,1769535042876,-4450.63,0.0001593,2]
[403778189,1769535042885,-1000.0,0.00016303,2]
[403778190,1769535042894,-200.0,0.00016438,2]
[403778191,1769535042906,-151.0,0.00016438,2]
[403778192,1769535042915,-337.15308738,0.00016475,2]
[403778193,1769535042925,-30000.0,0.00016475,2]
[403778194,1769535042935,-553.64373807,0.00016475,2]
[403778195,1769535042944,-2674.60743027,0.00016475,2]
[403778196,1769535042954,-1041.66666667,0.00016678,2]
[403778197,1769535042963,-5340.76,0.00016992,2]
[403778198,1769535042974,-31110.0,0.00017023,2]
[403778199,1769535042983,-574.12855637,0.00017023,2]
[403778200,1769535042992,-2773.56790519,0.00017023,2]
[403778201,1769535043001,-9516.08425155,0.000175,3]
[403778202,1769535043010,-1000.0,0.00017508,2]
[403778203,1769535043019,-244.0,0.00017508,2]
[403778204,1769535043029,-10132.15421234,0.00017571,2]
[403778205,1769535043038,-595.37131296,0.00017571,2]
[403778206,1769535043048,-2876.18991768,0.00017571,2]
[403778207,1769535043058,-210.22295055,0.000176,2]
[403778208,1769535043067,-594.66220415,0.00017657,2]
[403778209,1769535043076,-160.0,0.00017999,2]
[403778210,1769535043085,-125205.28095462,0.00018,2]
[403778211,1769535043095,-6230.89,0.00018054,2]
[403778212,1769535043104,-617.40005154,0.00018119,2]
[403778213,1769535043113,-2982.60894464,0.00018119,2]
[403778214,1769535043122,-168.0,0.00018213,2]
[403778215,1769535043131,-729.0,0.000184,2]
[403778217,1769535043141,-729.0,0.000184,2]
[403778218,1769535043152,-729.0,0.000184,2]
[403778219,1769535043161,-151.0,0.000184,2]
[403778220,1769535043171,-168.0,0.00018457,2]
[403778221,1769535043180,-1820.64050758,0.000185,2]
[403778222,1769535043219,-423417.53805342,0.000185,2]
[403778224,1769535043228,-1000.0,0.00018521,5]
[403778226,1769535043238,-552.09981779,0.00018667,2]
[403778228,1769535043247,-3092.96547559,0.00018667,2]
[403778229,1769535043255,-320.0,0.0001872,2]
[403778230,1769535043264,-729.0,0.0001872,2]
[403778232,1769535043274,-670.086,0.0001874,2]
[403778234,1769535043282,-2155.187,0.0001874,2]
[403778236,1769535043291,-1372.504,0.0001874,2]
[403778238,1769535043301,-179.0,0.0001874,2]
[403778240,1769535043310,-303.10001603,0.000189,2]
[403778242,1769535043318,-40220.08497671,0.00018998,2]
[403778253,1769535043707,-201.93286099,0.00016475,2]
[403778254,1769535043716,-209.40437684,0.00016475,2]
[403778255,1769535043725,-217.15233878,0.00016475,2]
[403778256,1769535043734,-225.18697532,0.00016475,2]
[403778257,1769535043744,-45312.21860203,0.00018998,2]
[403778258,1769535043755,-1172.50797802,0.00018998,2]
[403778259,1769535043765,-500.16552,0.00018998,2]
[403778260,1769535043776,-5536.07189028,0.00018998,2]
[403778261,1769535043787,-3700.00000083,0.00018998,2]
[403778262,1769535043798,-382.71030593,0.00018998,2]
[403778263,1769535043921,-43800.0,0.00018998,2]
[403778285,1769535046665,-233.51889341,0.00016475,2]
[403778286,1769535046675,-243.52636516,0.00018998,2]
[403778287,1769535046828,-12979.2353457,0.00018998,2]
[403778288,1769535046840,-16604.45553403,0.00018998,2]
[403778289,1769535046850,-54629.84391304,0.00019,2]
[403778290,1769535046860,-168.0,0.00019001,2]
[403778291,1769535046870,-729.0,0.0001904,2]
[403778292,1769535046880,-729.0,0.0001904,2]
[403778293,1769535046890,-729.0,0.0001904,2]
[403778294,1769535046899,-729.0,0.0001904,2]
[403778295,1769535046912,-553.0,0.0001904,2]
[403778296,1769535046921,-303.10001603,0.00019089,2]
[403778297,1769535046931,-168.0,0.00019098,2]
[403778298,1769535046940,-7121.01,0.00019116,2]
[403778299,1769535046950,-200.0,0.00019177,2]
[403778300,1769535046961,-484.04572642,0.00019178,2]
[403778301,1769535046971,-871.28230756,0.00019178,2]
[403778302,1769535046982,-1548.94632455,0.00019178,2]
[403778303,1769535046992,-360.24696008,0.00019178,2]
[403778304,1769535047002,-648.44452814,0.00019178,2]
[403778305,1769535047011,-1152.79027225,0.00019178,2]
[403778306,1769535047020,-2539.914,0.00019178,2]
[403778307,1769535047029,-1130.05,0.00019178,2]
[403778308,1769535047039,-2539.914,0.00019178,2]
[403778309,1769535047048,-1269.957,0.00019178,2]
[403778310,1769535047057,-151.0,0.00019178,2]
[403778311,1769535047067,-3273.728464,0.00019178,2]
[403778312,1769535047076,-249.905202,0.00019178,2]
[403778313,1769535047085,-3273.728464,0.00019178,2]
[403778314,1769535047094,-249.905202,0.00019178,2]
[403778315,1769535047104,-3273.728464,0.00019178,2]
[403778316,1769535047113,-249.905202,0.00019178,2]
[403778317,1769535047122,-3273.728464,0.00019178,2]
[403778318,1769535047132,-249.905202,0.00019178,2]
[403778319,1769535047141,-151.0,0.00019178,2]
[403778320,1769535047298,-1388.215631,0.00019178,2]
[403778321,1769535047308,-151.0,0.00019178,2]
[403778322,1769535047317,-1388.215631,0.00019178,2]
[403778323,1769535047327,-151.0,0.00019178,2]
[403778324,1769535047336,-1388.215631,0.00019178,2]
[403778325,1769535047345,-151.0,0.00019178,2]
[403778326,1769535047355,-1388.215631,0.00019178,2]
[403778327,1769535047364,-298.982035,0.00019178,2]
[403778328,1769535047373,-151.0,0.00019178,2]
[403778329,1769535047383,-151.0,0.00019178,2]
[403778330,1769535047394,-151.33869,0.00019178,2]
[403778331,1769535047404,-151.0,0.00019178,2]
[403778332,1769535047413,-372.554078,0.00019178,2]
[403778333,1769535047422,-372.554078,0.00019178,2]
[403778334,1769535047431,-372.554078,0.00019178,2]
[403778335,1769535047441,-372.554078,0.00019178,2]
[403778336,1769535047451,-151.0,0.00019178,2]
[403778337,1769535047461,-151.0,0.00019178,2]
[403778338,1769535047470,-180.027684,0.00019178,2]
[403778339,1769535047479,-180.027684,0.00019178,2]
[403778340,1769535047488,-180.027684,0.00019178,2]
[403778341,1769535047497,-180.027684,0.00019178,2]
[403778342,1769535047507,-228.790219,0.00019178,2]
[403778343,1769535047515,-228.790219,0.00019178,2]
[403778344,1769535047525,-228.790219,0.00019178,2]
[403778345,1769535047536,-151.0,0.00019178,2]
[403778346,1769535047545,-228.790219,0.00019178,2]
[403778347,1769535047554,-151.0,0.00019178,2]
[403778348,1769535047563,-151.0,0.00019178,2]
[403778349,1769535047572,-194.873958,0.00019178,2]
[403778350,1769535047582,-151.306167,0.00019178,2]
[403778351,1769535047591,-151.0,0.00019178,2]
[403778352,1769535047600,-151.0,0.00019178,2]
[403778353,1769535047609,-257.35298,0.00019178,2]
[403778354,1769535047619,-151.0,0.00019178,2]
[403778355,1769535047632,-151.0,0.00019178,2]
[403778356,1769535047642,-151.0,0.00019178,2]
[403778357,1769535047651,-151.0,0.00019178,2]
[403778358,1769535047660,-151.0,0.00019178,2]
[403778359,1769535047671,-631.492598,0.00019178,2]
[403778360,1769535047681,-631.492598,0.00019178,2]
[403778361,1769535047691,-631.492598,0.00019178,2]
[403778362,1769535047700,-631.492598,0.00019178,2]
[403778363,1769535047711,-631.492598,0.00019178,2]
[403778364,1769535047720,-631.492598,0.00019178,2]
[403778365,1769535047729,-631.492598,0.00019178,2]
[403778366,1769535047739,-631.492598,0.00019178,2]
[403778367,1769535047748,-631.492598,0.00019178,2]
[403778368,1769535047757,-631.492598,0.00019178,2]
[403778369,1769535047767,-631.492598,0.00019178,2]
[403778370,1769535047776,-631.492598,0.00019178,2]
[403778371,1769535047785,-151.0,0.00019178,2]
[403778372,1769535047794,-151.0,0.00019178,2]
[403778373,1769535047803,-269.660516,0.00019178,2]
[403778374,1769535047812,-357.46,0.000192,2]
[403778375,1769535047821,-167.96,0.000192,2]
[403778376,1769535047830,-171.22,0.000192,2]
[403778377,1769535047839,-168.0,0.00019201,2]
[403778378,1769535047849,-1000.0,0.00019259,2]
[403778379,1769535047858,-492.0,0.00019259,2]
[403778380,1769535047867,-303.10001603,0.00019278,2]
[403778381,1769535047876,-157.69654565,0.00019288,30]
[403778382,1769535047885,-664.0,0.000193,2]
[403778383,1769535047895,-151.0,0.00019352,2]
[403778384,1769535047905,-151.0,0.00019352,2]
[403778385,1769535047916,-151.0,0.00019352,2]
[403778386,1769535047930,-151.0,0.00019352,2]
[403778387,1769535047940,-245.09712,0.00019352,2]
[403778388,1769535047950,-151.0,0.00019352,2]
[403778389,1769535047959,-151.0,0.00019352,2]
[403778390,1769535047969,-151.0,0.00019352,2]
[403778391,1769535047979,-729.0,0.0001936,2]
[403778392,1769535047988,-729.0,0.0001936,2]
[403778393,1769535047998,-168.0,0.00019361,2]
[403778394,1769535048007,-168.0,0.00019373,2]
[403778395,1769535048017,-729.0,0.00019425,2]
[403778396,1769535048026,-168.0,0.00019466,2]
[403778397,1769535048035,-30742.488981,0.00019466,7]
[403778398,1769535048045,-151.0,0.00019467,2]
[403778399,1769535048055,-158.828846,0.00019467,2]
[403778400,1769535048065,-182.048064,0.00019467,2]
[403778401,1769535048074,-182.048064,0.00019467,2]
[403778402,1769535048084,-182.048064,0.00019467,2]
[403778403,1769535048094,-182.048064,0.00019467,2]
[403778404,1769535048105,-303.10001603,0.00019467,2]
[403778405,1769535048114,-157.69654565,0.00019534,30]
[403778406,1769535048124,-168.0,0.00019553,2]
[403778407,1769535048134,-931.293,0.00019589,3]
[403778408,1769535048144,-123953.23495754,0.000196,2]
[403778409,1769535093070,500.0,0.0003,60]
[403778410,1769535093224,500.0,0.0003,60]
[403778411,1769535095406,203.19270119,0.00030137,120]
[403778412,1769535095425,296.80729881,0.00030137,120]
[403778413,1769535096037,150.45045336,0.0003,60]
[403778452,1769535261019,150.0,0.0003,60]
[403778453,1769535262307,150.0,0.0003,60]
[403778454,1769535262709,25.6372934,0.0003,60]
[403778455,1769535310439,-300.0,0.00011823,2]
[403778456,1769535310467,-300.0,0.00011823,2]
[403778457,1769535310496,-300.0,0.00011823,2]
[403778458,1769535310524,-300.0,0.00011823,2]
[403778459,1769535310554,-1200.0,0.00011823,2]
[403778466,1769535322835,771.24,0.00011333,2]
[403778467,1769535344327,500.0,0.00011724,2]
[403778468,1769535344494,257.77474856,0.00011724,2]
[403778469,1769535345718,500.0,0.00011724,2]
[403778470,1769535345753,500.0,0.00011724,2]
[403778471,1769535345784,500.0,0.00011724,2]
[403778472,1769535345820,500.0,0.00011724,2]
[403778473,1769535345851,500.0,0.00011724,2]
[403778474,1769535345880,500.0,0.00011724,2]
[403778475,1769535345909,500.0,0.00011724,2]
[403778476,1769535345936,170.99525144,0.00011724,2]
[403778477,1769535345959,329.00474856,0.00011724,2]
[403778478,1769535345991,500.0,0.00011724,2]
[403778479,1769535346020,500.0,0.00011724,2]
[403778480,1769535346048,500.0,0.00011724,2]
[403778481,1769535346076,198.73904935,0.00011724,2]
[403778482,1769535346104,500.0,0.00011724,2]
[403778483,1769535346133,500.0,0.00011724,2]
[403778484,1769535346160,500.0,0.00011724,2]
[403778485,1769535346190,500.0,0.00011724,2]
[403778486,1769535346217,500.0,0.00011724,2]
[403778487,1769535346252,500.0,0.00011724,2]
[403778488,1769535346280,500.0,0.00011724,2]
[403778489,1769535346307,500.0,0.00011724,2]
[403778490,1769535346340,500.0,0.00011724,2]
[403778491,1769535346373,500.0,0.00011724,2]
[403778492,1769535346405,500.0,0.00011724,2]
[403778493,1769535346433,500.0,0.00011724,2]
[403778494,1769535346461,500.0,0.00011724,2]
[403778495,1769535346488,500.0,0.00011724,2]
[403778496,1769535346520,500.0,0.00011724,2]
[403778497,1769535346547,472.26620209,0.00011724,2]